Workbook

Sheet Intro
A1: Note Issue in the United Kingdom Periphery: Data
A2: by Brandon Dixon
A3: Companion workbook to the working paper
A4: Copyright 2014 by Brandon Dixon. This work may be reproduced provided that no fee is charged and the original source is properly credited.
A6: Sheet | B6: Description
A7: Intro | B7: This sheet
A8: Scotland | B8: Scottish data from the London Gazette and Edinburgh Gazette
A9: Northern Ireland | B9: Northern Irish data from the Belfast Gazette
A10: Isle of Man | B10: Isle of Man data from Isle of Man Treasury, Detailed Government Accounts
A11: Guernsey | B11: Guernsey data from Guernsey Treasury and Resources Department, Accounts of the States
A12: Jersey | B12: Jersey data from Bailiwick of Jersey Treasury and Resource Department, Annex to Financial Report and Accounts
A13: Graphs | B13: Graphs used in the in working paper based on the data here

Sheet Scotland
A1: Scotland
A2: Figures in pounds sterling as of the end of March
B3: Note Issue | H3: Reserves | N3: Aggregate Ratios | Q3: Bands for Pass-Through Graph
A4: Year | B4: Bank of Scotland | C4: Royal Bank of Scotland | D4: Clydesdale Bank | E4: Aggregate Level, All Three Note Issuers | F4: Aggregate Annual Change | H4: Bank of Scotland | I4: Royal Bank of Scotland | J4: Clydesdale Bank | K4: Aggregate Level, All Three Note Issuers | L4: Aggregate Annual Change | N4: Aggregate Reserve Ratio | O4: Aggregate Reserve Pass-Through Ratio | Q4: Lower Band of 80% | R4: Upper Band of 120%
A5: 1980 | B5: 163371891 | C5: 227172861 | D5: 80682379 | E5: =B5+C5+D5 -> 471227131 | H5: 168691568 | I5: 235717090 | J5: 86278253 | K5: =H5+I5+J5 -> 490686911 | N5: =K5/E5 -> 1.041295967 | Q5: 0.8 | R5: 1.2
A6: 1981 | B6: 170579124 | C6: 244156414 | D6: 99641730 | E6: =B6+C6+D6 -> 514377268 | F6: =E6-E5 -> 43150137 | H6: 177461050 | I6: 253443513 | J6: 106098098 | K6: =H6+I6+J6 -> 537002661 | L6: =K6-K5 -> 46315750 | N6: 1.043985989 | O6: =F6/L6 -> 0.9316514792 | Q6: 0.8 | R6: 1.2
A7: 1982 | B7: 169413957 | C7: 251909304 | D7: 150972661 | E7: =B7+C7+D7 -> 572295922 | F7: =E7-E6 -> 57918654 | H7: 175535849 | I7: 260999013 | J7: 157725627 | K7: 594260489 | L7: =K7-K6 -> 57257828 | N7: 1.038379737 | O7: 1.011541234 | Q7: 0.8 | R7: 1.2
A8: 1983 | B8: 187403645 | C8: 262143338 | D8: 185753794 | E8: 635300777 | F8: 63004855 | H8: 187335998 | I8: 262352948 | J8: 185624086 | K8: 635313032 | L8: 41052543 | N8: 1.00001929 | O8: 1.534736959 | Q8: 0.8 | R8: 1.2
A9: 1984 | B9: 215667356 | C9: 310536822 | D9: 160777057 | E9: 686981235 | F9: 51680458 | H9: 217191263 | I9: 311762046 | J9: 161560231 | K9: 690513540 | L9: 55200508 | N9: 1.005141778 | O9: 0.9362315651 | Q9: 0.8 | R9: 1.2
A10: 1985 | B10: 241880091 | C10: 331092242 | D10: 167925528 | E10: 740897861 | F10: 53916626 | H10: 243714929 | I10: 332510223 | J10: 167995071 | K10: 744220223 | L10: 53706683 | N10: 1.004484238 | O10: 1.003909067 | Q10: 0.8 | R10: 1.2
A11: 1986 | B11: 262519047 | C11: 344570782 | D11: 177682822 | E11: 784772651 | F11: 43874790 | H11: 263693964 | I11: 345177003 | J11: 177546877 | K11: 786417844 | L11: 42197621 | N11: 1.002096394 | O11: 1.039745582 | Q11: 0.8 | R11: 1.2
A12: 1987 | B12: 278975827 | C12: 371599922 | D12: 180906338 | E12: 831482087 | F12: 46709436 | H12: 279954392 | I12: 372306898 | J12: 181064370 | K12: 833325660 | L12: 46907816 | N12: 1.002217213 | O12: 0.9957708541 | Q12: 0.8 | R12: 1.2
A13: 1988 | B13: 252670757 | C13: 455988781 | D13: 189814861 | E13: 898474399 | F13: 66992312 | H13: 252882634 | I13: 456285353 | J13: 189866092 | K13: 899034079 | L13: 65708419 | N13: 1.000622923 | O13: 1.019539247 | Q13: 0.8 | R13: 1.2
A14: 1989 | B14: 265092094 | C14: 490105945 | D14: 207256576 | E14: 962454615 | F14: 63980216 | H14: 272247342 | I14: 501063266 | J14: 212012920 | K14: 985323528 | L14: 86289449 | N14: 1.02376103 | O14: 0.7414604768 | Q14: 0.8 | R14: 1.2
A15: 1990 | B15: 280194956 | C15: 532863248 | D15: 215384183 | E15: 1028442387 | F15: 65987772 | H15: 292478295 | I15: 545319314 | J15: 221266474 | K15: 1059064083 | L15: 73740555 | N15: 1.029774829 | O15: 0.8948640541 | Q15: 0.8 | R15: 1.2
A16: 1991 | B16: 283211370 | C16: 559814862 | D16: 227030451 | E16: 1070056683 | F16: 41614296 | H16: 292544296 | I16: 575610627 | J16: 232537035 | K16: 1100691958 | L16: 41627875 | N16: 1.028629581 | O16: 0.9996738003 | Q16: 0.8 | R16: 1.2
A17: 1992 | B17: 304814691 | C17: 601835481 | D17: 253309358 | E17: 1159959530 | F17: 89902847 | H17: 316238058 | I17: 594930376 | J17: 262083044 | K17: 1173251478 | L17: 72559520 | N17: 1.011458976 | O17: 1.239022075 | Q17: 0.8 | R17: 1.2
A18: 1993 | B18: 337135264 | C18: 683139613 | D18: 276030702 | E18: 1296305579 | F18: 136346049 | H18: 348548014 | I18: 694880654 | J18: 284445497 | K18: 1327874165 | L18: 154622687 | N18: 1.024352735 | O18: 0.8817984711 | Q18: 0.8 | R18: 1.2
A19: 1994 | B19: 349385024 | C19: 710914769 | D19: 291580652 | E19: 1351880445 | F19: 55574866 | H19: 359676548 | I19: 720136392 | J19: 298579928 | K19: 1378392868 | L19: 50518703 | N19: 1.019611515 | O19: 1.100084972 | Q19: 0.8 | R19: 1.2
A20: 1995 | B20: 373074884 | C20: 756100753 | D20: 321278371 | E20: 1450454008 | F20: 98573563 | H20: 381350239 | I20: 765273524 | J20: 330037927 | K20: 1476661690 | L20: =K20-K19 -> 98268822 | N20: 1.018068606 | O20: 1.003101095 | Q20: 0.8 | R20: 1.2
A21: 1996 | B21: 436219881 | C21: 811768030 | D21: 354412282 | E21: 1602400193 | F21: 151946185 | H21: 445671197 | I21: 818784846 | J21: 358399775 | K21: 1622855818 | L21: 146194128 | N21: 1.012765616 | O21: 1.039345335 | Q21: 0.8 | R21: 1.2
A22: 1997 | B22: 464091438 | C22: 843232654 | D22: 367560068 | E22: 1674884160 | F22: 72483967 | H22: 470412420 | I22: 851243161 | J22: 369892646 | K22: 1691548227 | L22: 68692409 | N22: 1.009949385 | O22: 1.055196172 | Q22: 0.8 | R22: 1.2
A23: 1998 | B23: 473001844 | C23: 869980792 | D23: 375342772 | E23: 1718325408 | F23: 43441248 | H23: 479535472 | I23: 881416610 | J23: 377589392 | K23: 1738541474 | L23: 46993247 | N23: 1.011764981 | O23: 0.924414693 | Q23: 0.8 | R23: 1.2
A24: 1999 | B24: 530075919 | C24: 914858423 | D24: 389508762 | E24: =B24+C24+D24 -> 1834443104 | F24: 116117696 | H24: 538508107 | I24: 922439782 | J24: 396830094 | K24: =H24+I24+J24 -> 1857777983 | L24: 119236509 | N24: 1.012720416 | O24: 0.9738434727 | Q24: 0.8 | R24: 1.2
A25: 2000 | B25: 570464725 | C25: 949565545 | D25: 414976855 | E25: =B25+C25+D25 -> 1935007125 | F25: 100564021 | H25: 580593476 | I25: 966666182 | J25: 418133589 | K25: 1965393247 | L25: 107615264 | N25: 1.015703364 | O25: 0.9344772968 | Q25: 0.8 | R25: 1.2
A26: 2001 | B26: 625601561 | C26: 997082724 | D26: 452536987 | E26: =B26+C26+D26 -> 2075221272 | F26: 140214147 | H26: 637796013 | I26: 1006501295 | J26: 460428420 | K26: 2104725728 | L26: 139332481 | N26: 1.014217499 | O26: 1.006327785 | Q26: 0.8 | R26: 1.2
A27: 2002 | B27: 676384693 | C27: 976927190 | D27: 581986718 | E27: 2235298601 | F27: 160077329 | H27: 686827412 | I27: 982419528 | J27: 584971960 | K27: 2254218900 | L27: 149493172 | N27: 1.008464327 | O27: 1.07080027 | Q27: 0.8 | R27: 1.2
A28: 2003 | B28: 725352103 | C28: 1000421779 | D28: 656273487 | E28: 2382047369 | F28: 146748768 | H28: 736521456 | I28: 1011635747 | J28: 664260578 | K28: 2412417781 | L28: 158198881 | N28: 1.01274971 | O28: 0.9276220355 | Q28: 0.8 | R28: 1.2
A29: 2004 | B29: 806764825 | C29: 1025486857 | D29: 728002203 | E29: 2560253885 | F29: 178206516 | H29: 820935354 | I29: 1040758542 | J29: 739285767 | K29: 2600979663 | L29: 188561882 | N29: 1.015906929 | O29: 0.9450824001 | Q29: 0.8 | R29: 1.2
A30: 2005 | B30: 809575516 | C30: 985639353 | D30: 905842486 | E30: 2701057355 | F30: 140803470 | H30: 822046108 | I30: 998450159 | J30: 911005698 | K30: 2731501965 | L30: 130522302 | N30: 1.011271367 | O30: 1.078769435 | Q30: 0.8 | R30: 1.2
A31: 2006 | B31: 812727662 | C31: 973381845 | D31: 1018456817 | E31: 2804566324 | F31: 103508969 | H31: 846927982 | I31: 991955834 | J31: 1025988495 | K31: 2864872311 | L31: 133370346 | N31: 1.021502785 | O31: 0.7761018255 | Q31: 0.8 | R31: 1.2

Sheet Northern Ireland
A1: Northern Ireland
A2: Figures in pounds sterling as of the end of March; 1986, 1987, and 1989 are interpolations
B3: Note Issue | J3: Reserves | R3: Aggregate Ratios | U3: Bands for Pass-Through Graph
A4: Year | B4: Bank of Ireland | C4: First Trust Bank (formerly Allied Irish Bank, Provincial Bank of Ireland) | D4: Northern Bank | E4: Ulster Bank | F4: National Bank (residual issue; bank long part of Bank of Ireland) | G4: Aggregate Level, All Five Note Issuers | H4: Aggregate Annual Change | J4: Bank of Ireland | K4: First Trust Bank (formerly Allied Irish Bank, Provincial Bank of Ireland) | L4: Northern Bank | M4: Ulster Bank | N4: National Bank (residual issue; bank long part of Bank of Ireland) | O4: Aggregate Level, All Five Note Issuers | P4: Aggregate Annual Change | R4: Aggregate Reserve Ratio | S4: Aggregate Reserve Pass-Through Ratio | U4: Lower Band of 80% | V4: Upper Band of 120%
A5: 1980 | B5: 6807055 | C5: 10858823 | D5: 20918384 | E5: 12482048 | F5: 80007 | G5: =B5+C5+D5+E5+F5 -> 51146317 | J5: 6755037 | K5: 10810311 | L5: 25527978 | M5: 13787712 | N5: 100000 | O5: =J5+K5+L5+M5+N5 -> 56981038 | R5: =O5/G5 -> 1.114079006 | U5: 0.8 | V5: 1.2
A6: 1981 | B6: 7493627 | C6: 12862484 | D6: 22727842 | E6: 12675265 | F6: 70507 | G6: =B6+C6+D6+E6+F6 -> 55829725 | H6: =G6-G5 -> 4683408 | J6: 7464352 | K6: 12587256 | L6: 26393789 | M6: 13798717 | N6: 100000 | O6: =J6+K6+L6+M6+N6 -> 60344114 | P6: =O6-O5 -> 3363076 | R6: 1.080859954 | S6: =H6/P6 -> 1.39259654 | U6: 0.8 | V6: 1.2
A7: 1982 | B7: 14408295 | C7: 16262201 | D7: 25936450 | E7: 12725332 | F7: 70507 | G7: 69402785 | H7: =G7-G6 -> 13573060 | J7: 14406845 | K7: 16265729 | L7: 29617250 | M7: 14612030 | N7: 100000 | O7: 75001854 | P7: =O7-O6 -> 14657740 | R7: 1.08067499 | S7: 0.9259995061 | U7: 0.8 | V7: 1.2
A8: 1983 | B8: 13307580 | C8: 25099400 | D8: 32287228 | E8: 22719448 | F8: 66507 | G8: 93480163 | H8: 24077378 | J8: 12598053 | K8: 25017135 | L8: 31898188 | M8: 22501683 | N8: 100000 | O8: 92115059 | P8: 17113205 | R8: 0.985396859 | S8: 1.406947325 | U8: 0.8 | V8: 1.2
A9: 1984 | B9: 28003387 | C9: 32563082 | D9: 45605224 | E9: 31647989 | F9: 64507 | G9: 137884189 | H9: 44404026 | J9: 27414286 | K9: 32348813 | L9: 45216816 | M9: 31408327 | N9: 65000 | O9: 136453242 | P9: 44338183 | R9: 0.9896221096 | S9: 1.001485018 | U9: 0.8 | V9: 1.2
A10: 1985 | B10: 36769188 | C10: 36243611 | D10: 52071955 | E10: 42211809 | F10: 64507 | G10: 167361070 | H10: 29476881 | J10: 36304367 | K10: 36232201 | L10: 51690512 | M10: 41982785 | N10: 65000 | O10: 166274865 | P10: =O10-O9 -> 29821623 | R10: 0.9935098109 | S10: 0.9884398646 | U10: 0.8 | V10: 1.2
A11: 1986 (interpolated) | B11: =B$10+(1/3)*(B$13-B$10) -> 39742231.33 | C11: =C$10+(1/3)*(C$13-C$10) -> 42016908.67 | D11: 61124356.33 | E11: 47744998.33 | F11: 63507 | G11: =B11+C11+D11+E11+F11 -> 190692001.7 | H11: =(G11-G8)/3 -> 32403946.22 | J11: =J$10+(1/3)*(J$13-J$10) -> 39293491 | K11: =K$10+(1/3)*(K$13-K$10) -> 42038887 | L11: 60778234.33 | M11: 47514877 | N11: 65000 | O11: 189690489.3 | P11: =(O11-O8)/3 -> 32525143.44 | R11: =O11/G11 -> 0.9947480108 | S11: 0.9962737375 | U11: 0.8 | V11: 1.2
A12: 1987 (interpolated) | B12: =B$10+(2/3)*(B$13-B$10) -> 42715274.67 | C12: =C$10+(2/3)*(C$13-C$10) -> 47790206.33 | D12: 70176757.67 | E12: 53278187.67 | F12: 62507 | G12: 214022933.3 | H12: =(G12-G9)/3 -> 25379581.44 | J12: =J$10+(2/3)*(J$13-J$10) -> 42282615 | K12: =K$10+(2/3)*(K$13-K$10) -> 47845573 | L12: 69865956.67 | M12: 53046969 | N12: 65000 | O12: 213106113.7 | P12: =(O12-O9)/3 -> 25550957.22 | R12: 0.995716255 | S12: 0.9932927844 | U12: 0.8 | V12: 1.2
A13: 1988 | B13: 45688318 | C13: 53563504 | D13: 79229159 | E13: 58811377 | F13: 61507 | G13: 237353865 | H13: =(G13-G10)/3 -> 23330931.67 | J13: 45271739 | K13: 53652259 | L13: 78953679 | M13: 58579061 | N13: 65000 | O13: 236521738 | P13: =(O13-O10)/3 -> 23415624.33 | R13: =O13/G13 -> 0.9964941502 | S13: 0.9963830703 | U13: 0.8 | V13: 1.2
A14: 1989 (interpolated) | B14: =AVERAGE(B13,B15) -> 55361847.5 | C14: =AVERAGE(C13,C15) -> 64431181 | D14: 104666811.5 | E14: 65524275 | F14: 61507 | G14: 290045622 | H14: =(G14-G11)/3 -> 33117873.44 | J14: =AVERAGE(J13,J15) -> 55472109 | K14: 65246992 | L14: 105338833.5 | M14: 66113863.5 | N14: 65000 | O14: 292236798 | P14: =(O14-O11)/3 -> 34182102.89 | R14: 1.007554591 | S14: 0.9688658873 | U14: 0.8 | V14: 1.2
A15: 1990 | B15: 65035377 | C15: 75298858 | D15: 130104464 | E15: 72237173 | F15: 61507 | G15: 342737379 | H15: =(G15-G13)/2 -> 52691757 | J15: 65672479 | K15: 76841725 | L15: 131723988 | M15: 73648666 | N15: 65000 | O15: 347951858 | P15: =(O15-O13)/2 -> 55715060 | R15: 1.015214212 | S15: 0.9457363413 | U15: 0.8 | V15: 1.2
A16: 1991 | B16: 85059884 | C16: 68593186 | D16: 127420779 | E16: 75288052 | F16: 61507 | G16: 356423408 | H16: 13686029 | J16: 85602140 | K16: 68418119 | L16: 128578773 | M16: 76900272 | N16: 65000 | O16: 359564304 | P16: 11612446 | R16: 1.008812261 | S16: 1.178565567 | U16: 0.8 | V16: 1.2
A17: 1992 | B17: 103380761 | C17: 78650865 | D17: 142237052 | E17: 83666150 | F17: 61507 | G17: 407996335 | H17: 51572927 | J17: 104187938 | K17: 78427680 | L17: 143406739 | M17: 85484893 | N17: 65000 | O17: 411572250 | P17: 52007946 | R17: 1.008764576 | S17: 0.9916355282 | U17: 0.8 | V17: 1.2
A18: 1993 | B18: 124192908 | C18: 120467874 | D18: 150978479 | E18: 98346467 | F18: 61507 | G18: 494047235 | H18: 86050900 | J18: 124576185 | K18: 120249325 | L18: 151963338 | M18: 100318476 | N18: 65000 | O18: 497172324 | P18: 85600074 | R18: 1.006325486 | S18: 1.005266654 | U18: 0.8 | V18: 1.2
A19: 1994 | B19: 148439018 | C19: 157530297 | D19: 160019372 | E19: 112941359 | F19: 61507 | G19: 578991553 | H19: 84944318 | J19: 148741656 | K19: 157310576 | L19: 161617813 | M19: 114946976 | N19: 65000 | O19: 582682021 | P19: 85509697 | R19: 1.006373958 | S19: 0.99338813 | U19: 0.8 | V19: 1.2
A20: 1995 | B20: 183314935 | C20: 152547500 | D20: 175016507 | E20: 125870600 | F20: 61507 | G20: 636811049 | H20: 57819496 | J20: 183656226 | K20: 157757253 | L20: 177314617 | M20: 127649489 | N20: 65000 | O20: 646442585 | P20: 63760564 | R20: 1.015124637 | S20: 0.9068222169 | U20: 0.8 | V20: 1.2
A21: 1996 | B21: 190385073 | C21: 163546250 | D21: 193182626 | E21: 142838690 | F21: 61507 | G21: 690014146 | H21: 53203097 | J21: 190934016 | K21: 167685447 | L21: 197158908 | M21: 146559407 | N21: 65000 | O21: 702402778 | P21: 55960193 | R21: 1.017954171 | S21: 0.9507311206 | U21: 0.8 | V21: 1.2
A22: 1997 | B22: 212780106 | C22: 172736000 | D22: 221460927 | E22: 149971506 | F22: 61507 | G22: 757010046 | H22: 66995900 | J22: 213584564 | K22: 177468564 | L22: 224243856 | M22: 152925678 | N22: 65000 | O22: 768287662 | P22: 65884884 | R22: 1.014897578 | S22: 1.016862988 | U22: 0.8 | V22: 1.2
A23: 1998 | B23: 233071127 | C23: 178166500 | D23: 216379438 | E23: 158267054 | F23: 61507 | G23: 785945626 | H23: 28935580 | J23: 233352241 | K23: 182340214 | L23: 219447819 | M23: 162874494 | N23: 65000 | O23: 798079768 | P23: 29792106 | R23: 1.015438908 | S23: 0.9712499009 | U23: 0.8 | V23: 1.2
A24: 1999 | B24: 272574265 | C24: 192645500 | D24: 218922255 | E24: 168768299 | F24: 61507 | G24: 852971826 | H24: 67026200 | J24: 275343427 | K24: 194500515 | L24: 222859542 | M24: 174936368 | N24: 65000 | O24: 867704852 | P24: 69625084 | R24: 1.017272582 | S24: 0.9626731653 | U24: 0.8 | V24: 1.2
A25: 2000 | B25: 330507093 | C25: 199090500 | D25: 215639645 | E25: 181811613 | F25: 61507 | G25: 927110358 | H25: 74138532 | J25: 334195993 | K25: 202989114 | L25: 219582371 | M25: 189782352 | N25: 65000 | O25: 946614830 | P25: 78909978 | R25: 1.021037918 | S25: 0.9395330461 | U25: 0.8 | V25: 1.2
A26: 2001 | B26: 377842266 | C26: 215032250 | D26: 227362755 | E26: 209401392 | F26: 61507 | G26: 1029700170 | H26: 102589812 | J26: 381107226 | K26: 218198828 | L26: 232007172 | M26: 218685334 | N26: 65000 | O26: 1050063560 | P26: 103448730 | R26: 1.019776038 | S26: 0.9916971624 | U26: 0.8 | V26: 1.2
A27: 2002 | B27: 473629961 | C27: 235494750 | D27: 255130347 | E27: 245951003 | F27: 61507 | G27: 1210267568 | H27: 180567398 | J27: 477351696 | K27: 241706988 | L27: 259894321 | M27: 259158393 | N27: 65000 | O27: 1238176398 | P27: 188112838 | R27: 1.023060049 | S27: 0.9598887557 | U27: 0.8 | V27: 1.2
A28: 2003 | B28: 483032916 | C28: 235576250 | D28: 262450295 | E28: 252140276 | F28: 61507 | G28: 1233261244 | H28: 22993676 | J28: 486729925 | K28: 240353856 | L28: 267930500 | M28: 261128405 | N28: 65000 | O28: 1256207686 | P28: 18031288 | R28: 1.018606311 | S28: 1.275209846 | U28: 0.8 | V28: 1.2
A29: 2004 | B29: 508975704 | C29: 257067500 | D29: 284217225 | E29: 281244124 | F29: 61507 | G29: 1331566060 | H29: 98304816 | J29: 511765070 | K29: 263205343 | L29: 288735647 | M29: 288271912 | N29: 65000 | O29: 1352042972 | P29: 95835286 | R29: 1.015378067 | S29: 1.025768484 | U29: 0.8 | V29: 1.2
A30: 2005 | B30: 536739631 | C30: 294150275 | D30: 226222219 | E30: 326622987 | F30: 61507 | G30: 1383796619 | H30: 52230559 | J30: 543136427 | K30: 299065936 | L30: 240732245 | M30: 343662706 | N30: 65000 | O30: 1426662314 | P30: 74619342 | R30: 1.030976875 | S30: 0.6999600586 | U30: 0.8 | V30: 1.2
A31: 2006 | B31: 555410750 | C31: 298042700 | D31: 233160067 | E31: 351600090 | F31: 61507 | G31: 1438275114 | H31: 54478495 | J31: 559931283 | K31: 302426571 | L31: 239789923 | M31: 370842572 | N31: 65000 | O31: 1473055349 | P31: 46393035 | R31: 1.024181907 | S31: 1.174281764 | U31: 0.8 | V31: 1.2
A33: Notes
A34: Data for 1986, 1987, and 1989 are linear interpolations because data were not readily findable

Sheet Isle of Man
A1: Isle of Man
A2: Figures in Manx pounds sterling as of the end of March
B3: Currency | E3: Reserves | I3: Ratios | L3: Bands for Pass-Through Graph
A4: Year | B4: Manx Currency (Notes and Coins) in Circulation | C4: Annual Change in Manx Currency in Circulation | E4: Currency Account | F4: Balance (Excess of Reserves over Notes and Coins in Circulation) | G4: Annual Change in Currency Account | I4: Reserve Ratio | J4: Reserve Pass-Through | L4: Lower Band of 80% | M4: Upper Band of 120%
A5: 1980 | B5: 9206343 | L5: 0.8 | M5: 1.2
A6: 1981 | B6: 9993203 | C6: =B6-B5 -> 786860 | L6: 0.8 | M6: 1.2
A7: 1982 | B7: 10750960 | C7: 757757 | L7: 0.8 | M7: 1.2
A8: 1983 | B8: 11315192 | C8: 564232 | L8: 0.8 | M8: 1.2
A9: 1984 | B9: 11728826 | C9: 413634 | L9: 0.8 | M9: 1.2
A10: 1985 | B10: 12145173 | C10: 416347 | L10: 0.8 | M10: 1.2
A11: 1986 | B11: 12343594 | C11: 198421 | L11: 0.8 | M11: 1.2
A12: 1987 | B12: 12720104 | C12: 376510 | L12: 0.8 | M12: 1.2
A13: 1988 | B13: 13241435 | C13: 521331 | L13: 0.8 | M13: 1.2
A14: 1989 | B14: 14140749 | C14: 899314 | L14: 0.8 | M14: 1.2
A15: 1990 | B15: 13278472 | C15: -862277 | L15: 0.8 | M15: 1.2
A16: 1991 | B16: 13612765 | C16: 334293 | L16: 0.8 | M16: 1.2
A17: 1992 | B17: 18117385 | C17: 4504620 | L17: 0.8 | M17: 1.2
A18: 1993 | B18: 20277701 | C18: 2160316 | L18: 0.8 | M18: 1.2
A19: 1994 | B19: 22905398 | C19: 2627697 | L19: 0.8 | M19: 1.2
A20: 1995 | B20: 23513530 | C20: 608132 | L20: 0.8 | M20: 1.2
A21: 1996 | B21: 25442323 | C21: 1928793 | L21: 0.8 | M21: 1.2
A22: 1997 | B22: 26435528 | C22: 993205 | L22: 0.8 | M22: 1.2
A23: 1998 | B23: 27253562 | C23: 818034 | L23: 0.8 | M23: 1.2
A24: 1999 | B24: 29217280 | C24: 1963718 | L24: 0.8 | M24: 1.2
A25: 2000 | B25: 32600891 | C25: 3383611 | E25: 36002565 | F25: 3401674 | I25: =E25/B25 -> 1.104342976 | L25: 0.8 | M25: 1.2
A26: 2001 | B26: 35016968 | C26: 2416077 | E26: 38137766 | F26: 3120798 | G26: =E26-E25 -> 2135201 | I26: =E26/B26 -> 1.089122451 | J26: =C26/G26 -> 1.131545461 | L26: 0.8 | M26: 1.2
A27: 2002 | B27: 41279378 | C27: 6262410 | E27: 44243909 | F27: 2964531 | G27: =E27-E26 -> 6106143 | I27: 1.071816271 | J27: 1.025591769 | L27: 0.8 | M27: 1.2
A28: 2003 | B28: 45132270 | C28: 3852892 | E28: 48240732 | F28: 3108462 | G28: =E28-E27 -> 3996823 | I28: 1.068874488 | J28: 0.963988648 | L28: 0.8 | M28: 1.2
A29: 2004 | B29: 46913891 | C29: 1781621 | E29: 50177578 | F29: 3263687 | G29: 1936846 | I29: 1.069567604 | J29: 0.9198568188 | L29: 0.8 | M29: 1.2
A30: 2005 | B30: 49710628 | C30: 2796737 | E30: 53388307 | F30: 3677679 | G30: 3210729 | I30: 1.073981745 | J30: 0.8710598123 | L30: 0.8 | M30: 1.2
A31: 2006 | B31: 50195914 | C31: 485286 | E31: 54595011 | F31: 4399097 | G31: 1206704 | I31: 1.087638548 | J31: 0.4021582758 | L31: 0.8 | M31: 1.2
A32: 2007 | B32: 52386582 | C32: 2190668 | E32: 56903515 | F32: 4516933 | G32: 2308504 | I32: 1.08622309 | J32: 0.9489556873 | L32: 0.8 | M32: 1.2
A33: 2008 | B33: 58416867 | C33: 6030285 | E33: 61908222 | F33: 3491355 | G33: 5004707 | I33: 1.059766214 | J33: 1.204922686 | L33: 0.8 | M33: 1.2
A34: 2009 | B34: 69277590 | C34: 10860723 | E34: 72885222 | F34: 3607632 | G34: 10977000 | I34: 1.052075022 | J34: 0.9894072151 | L34: 0.8 | M34: 1.2
A35: 2010 | B35: 67522510 | C35: -1755080 | E35: 71879692 | F35: 4357182 | G35: -1005530 | I35: 1.064529325 | J35: 1.745427784 | L35: 0.8 | M35: 1.2
A36: 2011 | B36: 66090726 | C36: -1431784 | E36: 71001087 | F36: 4910361 | G36: -878605 | I36: 1.074297277 | J36: 1.629610576 | L36: 0.8 | M36: 1.2
A37: 2012 | B37: 70900138 | C37: 4809412 | E37: 73308401 | F37: 2408263 | G37: 2307314 | I37: 1.033966972 | J37: 2.084420239 | L37: 0.8 | M37: 1.2
A38: 2013 | B38: 72663444 | C38: 1763306 | E38: 75242901 | F38: 2579457 | G38: 1934500 | I38: 1.035498689 | J38: 0.9115047816 | L38: 0.8 | M38: 1.2
A39: 2014 | B39: 72274733 | C39: -388711 | E39: 75512840 | F39: 3238107 | G39: 269939 | I39: 1.044802753 | J39: -1.439995703 | L39: 0.8 | M39: 1.2

Sheet Guernsey
A1: Guernsey
A2: Figures in Guernsey pounds as of the end of December
B3: Currency | G3: Reserves | K3: Ratios | N3: Bands for Pass-Through Graph
A4: Year | B4: Guernsey Notes in Circulation | C4: Guernsey Coins in Circulation | D4: Currency (Notes and Coins) in Circulation | E4: Annual Change in Currency in Circulation | G4: Notes and Coins Account | H4: Surplus on the Notes and Coins Account | I4: Annual Change in Note and Coins Account | K4: Reserve Ratio | L4: Reserve Pass-Through | N4: Lower Band of 80% | O4: Upper Band of 120%
A5: 1998 | B5: 16174734 | C5: 4355200 | D5: 20529934 | G5: =D5+H5 -> 21544974 | H5: 1015040 | K5: =G5/D5 -> 1.049441951 | N5: 0.8 | O5: 1.2
A6: 1999 (released in 2001) | B6: 16174734 | C6: 4355200 | D6: =B6+C6 -> 20529934 | E6: =D6-D5 -> 0 | G6: 21311818 | H6: 781884 | I6: =G6-G5 -> -233156 | K6: 1.038085071 | L6: -infinite | N6: 0.8 | O6: 1.2
A7: 2000 | B7: 18761268 | C7: 4792312 | D7: =B7+C7 -> 23553580 | E7: 3023646 | G7: 24623610 | H7: 1070030 | I7: =G7-G6 -> 3311792 | K7: 1.045429612 | L7: =E7/I7 -> 0.912993932 | N7: 0.8 | O7: 1.2
A8: 2001 | B8: 19617016 | C8: 5068322 | D8: =B8+C8 -> 24685338 | E8: 1131758 | G8: 25562409 | H8: 877071 | I8: 938799 | K8: 1.035530038 | L8: =E8/I8 -> 1.20553814 | N8: 0.8 | O8: 1.2
A9: 2002 | B9: 21446640 | C9: 5490339 | D9: 26936979 | E9: 2251641 | G9: 27810411 | H9: 873432 | I9: 2248002 | K9: 1.032425017 | L9: 1.001618771 | N9: 0.8 | O9: 1.2
A10: 2003 | B10: 25635017 | C10: 7280099 | D10: 32915116 | E10: 5978137 | G10: 33597028 | H10: 681912 | I10: 5786617 | K10: 1.02071729 | L10: 1.033097058 | N10: 0.8 | O10: 1.2
A11: 2004 | B11: 25039101 | C11: 7893842 | D11: 32932943 | E11: 17827 | G11: 33877551 | H11: 944608 | I11: 280523 | K11: 1.028682769 | L11: 0.0635491564 | N11: 0.8 | O11: 1.2
A12: 2005 | B12: 26632412 | C12: 8174488 | D12: 34806900 | E12: 1873957 | G12: 35828552 | H12: 1021652 | I12: 1951001 | K12: 1.029351996 | L12: 0.9605105277 | N12: 0.8 | O12: 1.2
A13: 2006 | B13: 29200876 | C13: 8605505 | D13: 37806381 | E13: 2999481 | G13: 38813029 | H13: 1006648 | I13: 2984477 | K13: 1.026626405 | L13: 1.005027346 | N13: 0.8 | O13: 1.2
A14: 2007 | B14: 30184918 | C14: 8839865 | D14: 39024783 | E14: 1218402 | G14: 40354942 | H14: 1330159 | I14: 1541913 | K14: 1.034084981 | L14: 0.7901885515 | N14: 0.8 | O14: 1.2
A15: 2008 | B15: 32430000 | C15: 5105000 | D15: =B15+C15 -> 37535000 | E15: -1489783 | G15: 38892000 | H15: 1357000 | I15: -1462942 | K15: 1.036152924 | L15: 1.018347276 | N15: 0.8 | O15: 1.2
A16: 2009 | B16: 33591000 | C16: 5379000 | D16: 38970000 | E16: 1435000 | G16: 39074000 | H16: 104000 | I16: 182000 | K16: 1.00266872 | L16: 7.884615385 | N16: 0.8 | O16: 1.2
A17: 2010 | B17: 35632000 | C17: 5605000 | D17: 41237000 | E17: 2267000 | G17: 41238000 | H17: 1000 | I17: 2164000 | K17: =G17/D17 -> 1.00002425 | L17: 1.047597043 | N17: 0.8 | O17: 1.2
A18: 2011 | B18: 36231000 | C18: 5728000 | D18: 41959000 | E18: 722000 | G18: 42045000 | H18: 86000 | I18: 807000 | K18: 1.00204962 | L18: 0.8946716233 | N18: 0.8 | O18: 1.2
A19: 2012 | B19: 37486000 | C19: 5872000 | D19: 43358000 | E19: 1399000 | G19: 44952000 | H19: 1594000 | I19: 2907000 | K19: 1.036763688 | L19: 0.48125215 | N19: 0.8 | O19: 1.2
A20: 2013 | B20: 38719000 | C20: 6098000 | D20: 44817000 | E20: 1459000 | G20: 47170000 | H20: 2353000 | I20: 2218000 | K20: 1.052502399 | L20: 0.6577998197 | N20: 0.8 | O20: 1.2
A22: Notes
A23: Reserve pass-through value in 1999 is an imposed value, because technically, division by zero gives an undefined value
A24: There are two sets of figures for 1999; the earlier set is below
A25: 1999 (released in 2000) | B25: 18761268 | C25: 4792312 | D25: 23553580 | E25: =D25-D5 -> 3023646 | G25: =D25+H25 -> 24335464 | H25: 781884 | I25: =G25-G5 -> 2790490 | K25: =G25/D25 -> 1.033195973 | L25: =I25/E25 -> 0.9228891213

Sheet Jersey
A1: Jersey
A2: Figures in Jersey pounds as of the end of December
B3: Currency | G3: Reserves | J3: Ratios | M3: Bands for Pass-Through Graph
A4: Year | B4: Jersey Notes in Circulation | C4: Jersey Coins in Circulation | D4: Currency (Notes and Coins) in Circulation | E4: Annual Change in Currency in Circulation | G4: Net Assets in Jersey Currency Fund | H4: Annualized Change in Jersey Currency Fund | J4: Reserve Ratio | K4: Reserve Pass-Through | M4: Lower Band of 80% | N4: Upper Band of 120%
A5: 2002 | B5: 55215158 | C5: 5086608 | D5: =B5+C5 -> 60301766 | G5: 65733149 | J5: =G5/D5 -> 1.090070049 | M5: 0.8 | N5: 1.2
A6: 2003 | B6: 61016580 | C6: 5458720 | D6: 66475300 | E6: =D6-D5 -> 6173534 | G6: 71447676 | H6: =G6-G5 -> 5714527 | J6: 1.074800354 | K6: =E6/H6 -> 1.080322833 | M6: 0.8 | N6: 1.2
A7: 2004 | B7: 62839708 | C7: 5795120 | D7: 68634828 | E7: =D7-D6 -> 2159528 | G7: =72728037-162830-2133 -> 72563074 | H7: =G7-G6 -> 1115398 | J7: 1.057234004 | K7: =E7/H7 -> 1.936105318 | M7: 0.8 | N7: 1.2
A8: 2005 | B8: 64471526 | C8: 6197944 | D8: 70669470 | E8: =D8-D7 -> 2034642 | G8: =75097906-0-5500 -> 75092406 | H8: =G8-G7 -> 2529332 | J8: 1.062586234 | K8: 0.8044187161 | M8: 0.8 | N8: 1.2
A9: 2006 | B9: 69570380 | C9: 6368078 | D9: 75938458 | E9: 5268988 | G9: 79501990 | H9: =G9-G8 -> 4409584 | J9: 1.046926578 | K9: 1.194894575 | M9: 0.8 | N9: 1.2
A10: 2007 | B10: 75648534 | C10: 6658826 | D10: 82307360 | E10: 6368902 | G10: =85890192-153161-102614 -> 85634417 | H10: =G10-G9 -> 6132427 | J10: 1.040422351 | K10: 1.038561405 | M10: 0.8 | N10: 1.2
A11: 2008 | B11: 84527006 | C11: 7022106 | D11: 91549112 | E11: 9241752 | G11: 93864006 | H11: 8229589 | J11: 1.025285816 | K11: 1.122990711 | M11: 0.8 | N11: 1.2
A12: 2009 | B12: 83350187 | C12: 7314028 | D12: 90664215 | E12: -884897 | G12: 94393930 | H12: 529924 | J12: 1.041137675 | K12: -1.669856432 | M12: 0.8 | N12: 1.2
A13: 2010 | B13: 85226851 | C13: 7552568 | D13: 92779419 | E13: 2115204 | G13: 96091968 | H13: 1698038 | J13: 1.035703489 | K13: 1.245675303 | M13: 0.8 | N13: 1.2
A14: 2011 | B14: 82707000 | C14: 7889000 | D14: =B14+C14 -> 90596000 | E14: -2183419 | G14: 93586000 | H14: -2505968 | J14: 1.033003665 | K14: 0.8712876621 | M14: 0.8 | N14: 1.2
A15: 2012 | B15: 82281000 | C15: 8189000 | D15: =B15+C15 -> 90470000 | E15: -126000 | G15: 95317000 | H15: 1731000 | J15: 1.053575771 | K15: -0.07279029463 | M15: 0.8 | N15: 1.2
A16: 2013 | B16: 92265000 | C16: 8344000 | D16: =B16+C16 -> 100609000 | E16: 10139000 | G16: 108459000 | H16: 13142000 | J16: 1.078024829 | K16: 0.7714959671 | M16: 0.8 | N16: 1.2
A18: Notes
A19: Before 2012, the Currency Fund was divided into a fund for coins and a fund for notes
A20: Net reserves is just total assets minus creditors
A21: The Currency Fund advanced a lot of cash in 2008

Sheet Graphs
